bitfinex-derivatives/quotes_BNBF0:USTF0_20250709
["timestamp","ask_amount","ask_price","bid_price","bid_amount"]
[1752098494722,0.2603777,668.67,667.83,1.53844004]
[1752098494927,0.2603777,668.67,667.84,1.53844004]
[1752098495126,0.2603777,668.67,667.85,1.53844004]
[1752098495426,0.2603777,668.67,667.86,1.53844004]
[1752098495627,0.2603777,668.67,667.87,1.53844004]
[1752098495923,3.36099617,668.55,667.88,1.53844004]
[1752098496127,3.36099617,668.55,667.89,1.53844004]
[1752098496424,3.36099617,668.55,667.9,1.53844004]
[1752098496724,3.36099617,668.55,667.91,1.53844004]
[1752098496922,3.36099617,668.55,667.92,1.53844004]
[1752098497226,3.36099617,668.55,667.93,1.53844004]
[1752098497427,3.36099617,668.55,667.94,1.53844004]
[1752098497624,3.36099617,668.61,667.95,1.53844004]
[1752098497829,3.36099617,668.61,667.96,1.53844004]
[1752098498024,0.2603777,668.67,667.97,1.53844004]
[1752098498229,0.2603777,668.67,667.98,1.53844004]
[1752098498430,0.2603777,668.67,667.99,1.53844004]
[1752098498625,0.2603777,668.67,668.0,1.53844004]
[1752098498929,0.2603777,668.67,667.79,1.73]
[1752098498930,0.2603777,668.67,668.01,1.53844004]
[1752098499131,0.2603777,668.67,668.02,1.53844004]
[1752098499330,0.2603777,668.67,668.03,1.53844004]
[1752098499533,0.2603777,668.67,668.04,1.53844004]
[1752098499830,0.2603777,668.67,668.05,1.53844004]
[1752098500131,0.2603777,668.67,667.79,1.73]
[1752098500331,0.2603777,668.67,667.8,1.53940838]
[1752098500630,0.2603777,668.67,667.81,1.53940838]
[1752098500827,0.2603777,668.67,667.82,1.53940838]
[1752098501026,0.2603777,668.67,667.83,1.53940838]
[1752098501225,0.2603777,668.67,667.84,1.53940838]
[1752098501526,0.2603777,668.67,667.85,1.53940838]
[1752098501825,0.2603777,668.67,667.86,1.53940838]
[1752098502030,0.2603777,668.67,667.79,1.73]
[1752098502031,0.2603777,668.67,667.87,1.53940838]
[1752098502230,3.36099617,668.71,667.88,1.53940838]
[1752098502430,3.36099617,668.72,667.89,1.53940838]
[1752098502726,3.36099617,668.73,667.9,1.53940838]
[1752098503030,3.36099617,668.73,667.91,1.53940838]
[1752098503230,3.36099617,668.65,667.92,1.53940838]
[1752098503530,3.36099617,668.65,667.93,1.53940838]
[1752098503727,3.36099617,668.71,667.94,1.53940838]
[1752098503927,3.36099617,668.71,667.95,1.53940838]
[1752098504127,3.36099617,668.71,667.96,1.53940838]
[1752098504327,3.36099617,668.71,667.97,1.53940838]
[1752098504527,3.36099617,668.71,667.87,1.67088515]
[1752098504528,3.36099617,668.72,667.98,1.53940838]
[1752098504727,3.36099617,668.72,667.99,1.53940838]
[1752098504932,3.36099617,668.72,668.0,1.53940838]
[1752098505132,3.36099617,668.72,668.01,1.53940838]
[1752098505329,3.36099617,668.72,668.02,1.53940838]
[1752098505632,3.36099617,668.72,668.03,1.53940838]
[1752098505831,3.36099617,668.87,668.04,1.53940838]
[1752098506032,3.36099617,668.87,668.05,1.53940838]
[1752098506230,3.36099617,668.87,668.06,1.53940838]
[1752098506432,0.26029882,668.9,668.07,1.53940838]
[1752098506634,0.26029882,668.9,668.08,1.53940838]
[1752098506832,0.26029882,668.9,668.09,1.53940838]
[1752098507029,0.26029882,668.9,668.1,1.53940838]
[1752098507334,0.26029882,668.9,668.11,1.53940838]
[1752098507532,0.26029882,668.9,668.12,1.53940838]
[1752098507734,0.26029882,668.9,668.13,1.53940838]
[1752098507931,0.26029882,668.9,668.14,1.53940838]
[1752098508137,0.26029882,668.9,668.15,1.53940838]
[1752098508338,0.26029882,668.9,667.79,3.40088515]
[1752098508637,0.26029882,668.9,667.8,1.5373755]
[1752098508838,0.26029882,668.9,667.81,1.5373755]
[1752098509033,0.26029882,668.9,667.82,1.5373755]
[1752098509233,0.26029882,668.9,667.83,1.5373755]
[1752098509433,0.26029882,668.9,667.79,3.40088515]
[1752098509434,0.26029882,668.9,667.84,1.5373755]
[1752098509632,0.26029882,668.9,667.85,1.5373755]
[1752098509838,0.26029882,668.9,667.86,1.5373755]
[1752098510038,0.26029882,668.9,667.87,1.5373755]
[1752098510239,0.26029882,668.9,667.88,1.5373755]
[1752098510540,0.26029882,668.9,667.89,1.5373755]
[1752098510736,0.26029882,668.9,667.9,1.5373755]
[1752098510941,0.26029882,668.9,667.91,1.5373755]
[1752098511142,0.26029882,668.9,667.92,1.5373755]
[1752098511437,0.26029882,668.9,667.93,1.5373755]
[1752098511742,0.26029882,668.9,667.94,1.5373755]
[1752098511936,0.26029882,668.9,667.95,1.5373755]
[1752098512136,0.26029882,668.9,667.96,1.5373755]
[1752098512340,0.26029882,668.9,667.97,1.5373755]
[1752098512541,0.26029882,668.9,667.98,1.5373755]
[1752098512740,0.26029882,668.9,667.99,1.5373755]
[1752098512943,0.26029882,668.9,668.0,1.5373755]
[1752098513243,0.26029882,668.9,668.01,1.5373755]
[1752098513443,0.26029882,668.9,668.02,1.5373755]
[1752098513641,0.26029882,668.9,668.03,1.5373755]
[1752098513942,0.26029882,668.9,668.04,1.5373755]
[1752098514145,0.26029882,668.9,668.05,1.5373755]
[1752098514344,0.26029882,668.9,668.06,1.5373755]
[1752098514541,0.26029882,668.9,668.07,1.5373755]
[1752098514844,0.26029882,668.9,668.08,1.5373755]
[1752098515041,0.26029882,668.9,668.09,1.5373755]
[1752098515242,0.26029882,668.9,668.1,1.5373755]
[1752098515545,0.26029882,668.9,668.11,1.5373755]
[1752098515841,0.26029882,668.9,668.12,1.5373755]
[1752098516041,0.26029882,668.9,668.13,1.5373755]
[1752098516242,0.26029882,668.9,668.14,1.5373755]
[1752098516546,0.26029882,668.9,668.15,1.5373755]
[1752098516846,0.26029882,668.9,668.16,1.5373755]
[1752098517040,0.26029882,668.9,667.9,1.67088515]
[1752098517245,0.26029882,668.9,667.91,1.53438925]
[1752098517445,0.26029882,668.9,667.92,1.53438925]
[1752098517646,0.26029882,668.9,667.93,1.53438925]
[1752098517846,0.26029882,668.9,667.94,1.53438925]
[1752098518048,3.36099617,668.85,667.94,1.67088515]
[1752098518248,0.26029882,668.9,667.95,1.53438925]
[1752098518544,0.26029882,668.9,667.96,1.53438925]
[1752098518745,0.26029882,668.9,667.97,1.53438925]
[1752098518948,0.26029882,668.9,667.98,1.53438925]
[1752098519146,0.26029882,668.9,667.99,1.53438925]
[1752098519344,0.26029882,668.9,667.9,1.67088515]
[1752098519345,0.26029882,668.9,668.0,1.53438925]
[1752098519549,0.26029882,668.9,668.01,1.53438925]
[1752098519750,0.26029882,668.9,668.02,1.53438925]
[1752098519948,0.26029882,668.9,668.03,1.53438925]
[1752098520249,0.26029882,668.9,668.04,1.53438925]
[1752098520450,0.26029882,668.9,668.05,1.53438925]
[1752098520651,0.26029882,668.9,668.06,1.53438925]
[1752098520851,0.26029882,668.9,668.07,1.53438925]
[1752098521049,0.26029882,668.9,668.08,1.53438925]
[1752098521348,0.26029882,668.9,668.09,1.53438925]
[1752098521551,0.26029882,668.9,668.1,1.53438925]
[1752098521748,0.26029882,668.9,668.11,1.53438925]
[1752098521946,0.26029882,668.9,668.12,1.53438925]
[1752098522152,0.26029882,668.9,668.13,1.53438925]
[1752098522354,3.36099617,668.89,667.83,1.67088515]
[1752098522647,0.26029882,668.9,667.84,1.53193077]
[1752098522849,0.26029882,668.9,667.85,1.53193077]
[1752098523052,0.26029882,668.9,667.86,1.53193077]
[1752098523252,0.26029882,668.9,667.87,1.53193077]
[1752098523451,0.26029882,668.9,667.88,1.53193077]
[1752098523649,0.26029882,668.9,667.89,1.53193077]
[1752098523949,0.26029882,668.9,667.9,1.53193077]
[1752098524253,3.62129499,668.9,667.91,1.53193077]
[1752098524453,3.62129499,668.9,667.92,1.53193077]
[1752098524752,3.62129499,668.9,667.93,1.53193077]
[1752098524950,3.62129499,668.9,667.94,1.53193077]
[1752098525249,3.62129499,668.9,667.95,1.53193077]
[1752098525250,3.36099617,668.89,667.95,1.53193077]
[1752098525453,3.36099617,668.89,667.96,1.53193077]
[1752098525653,3.36099617,668.89,667.79,1.726]
[1752098525854,3.36099617,668.89,667.8,1.53284382]
[1752098526054,3.62129499,668.9,667.81,1.53284382]
[1752098526350,3.36099617,668.89,667.82,1.53284382]
[1752098526555,3.36099617,668.89,667.83,1.53284382]
[1752098526850,3.36099617,668.89,667.84,1.53284382]
[1752098527154,3.36099617,668.89,667.85,1.53284382]
[1752098527448,3.36099617,668.89,667.86,1.53284382]
[1752098527654,3.36099617,668.89,667.87,1.53284382]
[1752098527855,0.26029882,668.9,667.88,1.53284382]
[1752098528051,0.26029882,668.9,667.89,1.53284382]
[1752098528249,0.26029882,668.9,667.79,1.726]
[1752098528250,0.26029882,668.9,667.9,1.53284382]
[1752098528452,0.26029882,668.9,667.91,1.53284382]
[1752098528650,0.26029882,668.9,667.92,1.53284382]
[1752098528953,0.26029882,668.9,667.93,1.53284382]
[1752098529151,0.26029882,668.9,667.94,1.53284382]
[1752098529347,0.26029882,668.9,667.95,1.53284382]
[1752098529550,0.26029882,668.9,667.96,1.53284382]
[1752098529754,0.26029882,668.9,667.97,1.53284382]
[1752098529951,0.26029882,668.9,667.98,1.53284382]
[1752098530255,0.26029882,668.9,667.99,1.53284382]
[1752098530556,0.26029882,668.9,668.0,1.53284382]
[1752098530755,0.26029882,668.9,667.79,1.726]
[1752098530954,0.26029882,668.9,667.8,1.53241811]
[1752098531154,0.26029882,668.9,667.81,1.53241811]
[1752098531458,0.26029882,668.9,667.82,1.53241811]
[1752098531658,0.26029882,668.9,667.83,1.53241811]
[1752098531856,0.26029882,668.9,667.84,1.53241811]
[1752098532053,0.26029882,668.9,667.52,1.67088515]
[1752098532054,0.26029882,668.9,667.85,1.53241811]
[1752098532255,0.26029882,668.9,667.86,1.53241811]
[1752098532460,0.26029882,668.9,667.87,1.53241811]
[1752098532660,0.26029882,668.9,667.88,1.53241811]
[1752098532858,0.26029882,668.9,667.89,1.53241811]
[1752098533060,0.26029882,668.9,667.9,1.53241811]
[1752098533261,0.26029882,668.9,667.91,1.53241811]
[1752098533460,0.26029882,668.9,667.92,1.53241811]
[1752098533658,0.26029882,668.9,667.93,1.53241811]
[1752098533856,0.26029882,668.9,667.94,1.53241811]
[1752098534062,0.26029882,668.9,667.95,1.53241811]
[1752098534261,0.26029882,668.9,667.96,1.53241811]
[1752098534461,0.26029882,668.9,667.97,1.53241811]
[1752098534658,0.26029882,668.9,667.98,1.53241811]
[1752098534959,0.26029882,668.9,667.93,1.912]
[1752098535162,0.26029882,668.9,667.94,1.53287921]
[1752098535360,0.26029882,668.9,667.95,1.53287921]
[1752098535565,0.26029882,668.9,667.96,1.53287921]
[1752098535764,0.26029882,668.9,667.97,1.53287921]
[1752098535964,0.26029882,668.9,667.98,1.53287921]
[1752098536161,0.26029882,668.9,667.93,1.912]
[1752098536363,0.26029882,668.9,667.94,1.5330136]
[1752098536665,0.26029882,668.9,667.95,1.5330136]
[1752098536860,0.26029882,668.9,667.96,1.5330136]
[1752098537161,0.26029882,668.9,667.97,1.5330136]
[1752098537360,3.36099617,668.74,667.93,1.912]
[1752098537561,3.36099617,668.74,667.94,1.53311267]
[1752098537761,3.36099617,668.74,667.95,1.53311267]
[1752098538065,3.36099617,668.74,667.96,1.53311267]
[1752098538259,3.36099617,668.74,667.97,1.53311267]
[1752098538463,3.36099617,668.74,667.93,1.912]
[1752098538662,3.36099617,668.74,667.94,1.5331949]
[1752098538861,3.36099617,668.74,667.95,1.5331949]
[1752098539065,3.36099617,668.74,667.96,1.5331949]
[1752098539262,3.36099617,668.75,667.97,1.5331949]
[1752098539469,3.36099617,668.75,667.93,1.912]
[1752098539668,3.36099617,668.75,667.94,1.53327794]
[1752098539866,3.36099617,668.76,667.95,1.53327794]
[1752098540069,3.36099617,668.76,667.96,1.53327794]
[1752098540365,3.36099617,668.76,667.97,1.53327794]
[1752098540569,3.36099617,668.75,667.98,1.53327794]
[1752098540765,3.36099617,668.75,667.93,1.912]
[1752098540969,3.36099617,668.75,667.94,1.53331614]
[1752098541170,3.36099617,668.7,667.95,1.53331614]
[1752098541370,3.36099617,668.7,667.96,1.53331614]
[1752098541666,3.36099617,668.67,667.97,1.53331614]
[1752098541866,3.36099617,668.67,667.93,1.912]
[1752098542070,3.36099617,668.74,667.94,1.53297249]
[1752098542369,3.36099617,668.74,667.95,1.53297249]
[1752098542570,3.36099617,668.74,667.96,1.53297249]
[1752098542767,3.36099617,668.74,667.97,1.53297249]
[1752098542967,3.36099617,668.74,667.98,1.53297249]
[1752098543171,3.36099617,668.74,667.99,1.53297249]
[1752098543370,3.36099617,668.73,668.0,1.53297249]
[1752098543668,3.36099617,668.73,668.01,1.53301487]
[1752098543872,3.36099617,668.73,668.02,1.53301487]
[1752098544072,3.36099617,668.73,668.03,1.53301487]
[1752098544267,3.36099617,668.73,668.04,1.53301487]
[1752098544467,3.36099617,668.73,668.05,1.53301487]
[1752098544771,3.36099617,668.73,667.93,1.912]
[1752098544971,3.36099617,668.73,667.94,1.53312551]
[1752098545272,3.36099617,668.77,667.95,1.53312551]
[1752098545572,3.36099617,668.78,667.96,1.53312551]
[1752098545772,3.36099617,668.78,667.97,1.53312551]
[1752098545968,3.36099617,668.78,667.93,1.912]
[1752098545969,3.36099617,668.78,667.98,1.53312551]
[1752098546174,3.36099617,668.78,667.99,1.53312551]
[1752098546373,3.36099617,668.77,668.0,1.53312551]
[1752098546574,3.36099617,668.77,668.01,1.53312551]
[1752098546869,3.36099617,668.74,668.02,1.53312551]
[1752098547074,3.36099617,668.74,668.03,1.53312551]
[1752098547374,3.36099617,668.73,668.04,1.53312551]
[1752098547569,3.36099617,668.73,668.05,1.53312551]
[1752098547873,3.36099617,668.73,668.06,1.53312551]
[1752098548074,3.36099617,668.73,668.07,1.53312551]
[1752098548375,3.36099617,668.73,667.93,1.912]
[1752098548574,3.36099617,668.73,667.94,1.53275225]
[1752098548774,3.36099617,668.73,667.95,1.53275225]
[1752098548974,3.36099617,668.72,667.96,1.53275225]
[1752098549169,3.36099617,668.73,667.97,1.53275225]
[1752098549374,0.26029882,668.9,667.98,1.53275225]
[1752098549375,3.36099617,668.72,667.98,1.53275225]
[1752098549576,3.36099617,668.72,667.99,1.53275225]
[1752098549774,3.36099617,668.75,668.0,1.53275225]
[1752098549973,3.36099617,668.75,668.01,1.53275225]
[1752098550173,3.36099617,668.75,668.02,1.53275225]
[1752098550478,3.36099617,668.75,668.03,1.53275225]
[1752098550671,3.36099617,668.75,668.04,1.53275225]
[1752098550875,3.36099617,668.72,667.93,1.912]
[1752098551074,3.36099617,668.72,667.94,1.53316629]
[1752098551273,3.36099617,668.72,667.95,1.53316629]
[1752098551479,3.36099617,668.72,667.96,1.53316629]
[1752098551776,3.36099617,668.72,667.97,1.53316629]
[1752098551974,3.36099617,668.72,667.98,1.53316629]
[1752098552175,3.36099617,668.72,667.99,1.53316629]
[1752098552374,3.36099617,668.72,668.0,1.53316629]
[1752098552579,3.36099617,668.72,668.01,1.53316629]
[1752098552777,3.36099617,668.72,668.02,1.53316629]
[1752098552976,3.36099617,668.73,668.03,1.53316629]
[1752098553279,3.36099617,668.73,668.04,1.53316629]
[1752098553582,3.36099617,668.73,668.05,1.53316629]
[1752098553777,3.36099617,668.73,667.93,1.912]
[1752098553980,3.36099617,668.73,667.94,1.53307868]
[1752098554175,3.36099617,668.73,667.93,1.912]
[1752098554176,3.36099617,668.73,667.95,1.53307868]
[1752098554376,3.36099617,668.73,667.96,1.53307868]
[1752098554580,3.36099617,668.73,667.97,1.53307868]
[1752098554777,3.36099617,668.73,667.98,1.53307868]
[1752098554977,3.36099617,668.73,667.99,1.53307868]
[1752098555176,3.36099617,668.73,668.0,1.53307868]
[1752098555375,3.36099617,668.72,668.01,1.53307868]
[1752098555675,3.36099617,668.72,668.02,1.53307868]
[1752098555877,3.36099617,668.72,668.03,1.53307868]
[1752098556077,3.36099617,668.72,668.04,1.53307868]
[1752098556277,3.36099617,668.72,668.05,1.53307868]
[1752098556480,3.36099617,668.72,668.06,1.53307868]
[1752098556683,3.36099617,668.72,667.93,1.912]
[1752098556882,3.36099617,668.72,667.94,1.53341231]
[1752098557083,3.36099617,668.72,667.95,1.53341231]
[1752098557278,3.36099617,668.72,667.96,1.53341231]
[1752098557482,3.36099617,668.72,667.97,1.53341231]
[1752098557683,3.36099617,668.72,667.98,1.53341231]
[1752098557982,3.36099617,668.72,667.99,1.53341231]
[1752098558182,3.36099617,668.72,668.0,1.53341231]
[1752098558379,0.26029882,668.9,667.93,1.912]
[1752098558380,3.36099617,668.71,668.01,1.53341231]
[1752098558579,3.36099617,668.71,668.02,1.53341231]
[1752098558779,3.36099617,668.71,668.03,1.53341231]
[1752098558979,3.36099617,668.71,668.04,1.53341231]
[1752098559183,3.36099617,668.69,668.05,1.53341231]
[1752098559383,3.36099617,668.69,668.06,1.53341231]
[1752098559684,3.36099617,668.64,667.93,1.912]
[1752098559884,3.36099617,668.69,667.94,1.53405648]
[1752098560084,3.36099617,668.69,667.95,1.53405648]
[1752098560284,3.36099617,668.7,667.96,1.53405648]
[1752098560486,3.36099617,668.7,667.97,1.53405648]
[1752098560684,3.36099617,668.7,667.98,1.53405648]
[1752098560884,3.36099617,668.7,667.99,1.53405648]
[1752098561085,3.36099617,668.7,668.0,1.53405648]
[1752098561385,3.36099617,668.7,668.01,1.53405648]
[1752098561585,3.36099617,668.7,668.02,1.53405648]
[1752098561784,3.36099617,668.7,668.03,1.53405648]
[1752098562080,3.36099617,668.7,668.04,1.53405648]
[1752098562288,3.36099617,668.7,668.05,1.53405648]
[1752098562582,3.36099617,668.7,668.06,1.53405648]
[1752098562782,3.36099617,668.69,667.93,1.912]
[1752098563081,3.36099617,668.69,667.94,1.53448844]
[1752098563285,3.36099617,668.69,667.95,1.53448844]
[1752098563585,3.36099617,668.69,667.96,1.53448844]
[1752098563783,3.36099617,668.7,667.97,1.53448844]
[1752098563982,3.36099617,668.7,667.98,1.53448844]
[1752098564186,3.36099617,668.69,667.99,1.53448844]
[1752098564387,3.36099617,668.7,668.0,1.53448844]
[1752098564585,3.36099617,668.7,668.01,1.53448844]
[1752098564788,3.36099617,668.7,668.02,1.53448844]
[1752098564983,3.36099617,668.7,668.03,1.53448844]
[1752098565185,3.36099617,668.69,668.04,1.53448844]
[1752098565489,3.36099617,668.7,668.05,1.53448844]
[1752098565686,3.36099617,668.76,668.06,1.53448844]
[1752098565885,3.36099617,668.72,667.93,1.912]
[1752098566088,3.36099617,668.72,667.94,1.53508974]
[1752098566286,3.36099617,668.72,667.95,1.53508974]
[1752098566590,3.36099617,668.72,667.96,1.53508974]
[1752098566885,3.36099617,668.72,667.97,1.53508974]
[1752098567192,3.36099617,668.72,667.98,1.53508974]
[1752098567389,3.36099617,668.72,667.99,1.53508974]
[1752098567590,3.36099617,668.72,668.0,1.53508974]
[1752098567890,3.36099617,668.71,668.01,1.53508974]
[1752098568088,3.36099617,668.71,668.02,1.53508974]
[1752098568291,3.36099617,668.72,667.93,1.912]
[1752098568489,3.36099617,668.72,667.94,1.53502518]
[1752098568786,3.36099617,668.72,667.95,1.53502518]
[1752098568988,3.36099617,668.72,667.96,1.53502518]
[1752098569189,3.36099617,668.72,667.97,1.53502518]
[1752098569386,3.36099617,668.73,667.98,1.53502518]
[1752098569587,3.36099617,668.77,667.99,1.53502518]
[1752098569789,3.36099617,668.77,668.0,1.53502518]
[1752098569992,3.36099617,668.77,668.01,1.53502518]
[1752098570188,3.36099617,668.77,668.02,1.53502518]
[1752098570389,3.36099617,668.77,668.03,1.53502518]
[1752098570589,3.36099617,668.77,667.93,1.912]
[1752098570792,3.36099617,668.83,667.94,1.53505147]
[1752098570991,3.36099617,668.83,667.95,1.53505147]
[1752098571192,3.36099617,668.84,667.96,1.53505147]
[1752098571393,3.36099617,668.84,667.97,1.53505147]
[1752098571597,3.36099617,668.85,667.98,1.53505147]
[1752098571797,3.36099617,668.87,667.99,1.53505147]
[1752098571993,3.36099617,668.86,668.0,1.53505147]
[1752098572194,3.36099617,668.81,668.01,1.53505147]
[1752098572393,3.36099617,668.77,668.02,1.53505147]
[1752098572595,3.36099617,668.77,668.03,1.53505147]
[1752098572794,3.36099617,668.77,667.72,1.67030374]
[1752098572993,3.36099617,668.77,667.73,1.53508705]
[1752098573195,3.36099617,668.77,667.74,1.53508705]
[1752098573394,3.36099617,668.71,667.75,1.53508705]
[1752098573596,3.36099617,668.71,667.76,1.53508705]
[1752098573900,3.36099617,668.71,667.77,1.53508705]
[1752098574196,3.36099617,668.71,667.78,1.53508705]
[1752098574402,3.36099617,668.7,667.79,1.53508705]
[1752098574601,3.36099617,668.7,667.8,1.53508705]
[1752098575401,3.36099617,668.71,667.81,1.53508705]
[1752098575601,3.36099617,668.7,667.82,1.53508705]
[1752098575900,3.36099617,668.7,667.83,1.53508705]
[1752098576100,3.36099617,668.7,667.84,1.53508705]
[1752098576300,3.36099617,668.7,667.85,1.53508705]
[1752098576500,3.36099617,668.7,667.86,1.53508705]
[1752098576702,3.36099617,668.7,667.87,1.53508705]
[1752098576997,3.36099617,668.7,667.88,1.53508705]
[1752098577199,3.36099617,668.7,667.89,1.53508705]
[1752098577398,3.36099617,668.69,667.9,1.53508705]
[1752098577702,3.36099617,668.69,667.91,1.53508705]
[1752098577901,3.36099617,668.69,667.92,1.53508705]
[1752098578204,3.36099617,668.69,667.93,1.53508705]
[1752098578397,3.36099617,668.69,667.79,2.328]
[1752098578398,3.36099617,668.69,667.94,1.53508705]
[1752098578598,3.36099617,668.69,667.95,1.53508705]
[1752098578802,3.36099617,668.69,667.96,1.53508705]
[1752098579001,3.36099617,668.69,667.97,1.53508705]
[1752098579201,3.36099617,668.69,667.98,1.53508705]
[1752098579399,3.36099617,668.68,667.79,2.328]
[1752098579705,3.36099617,668.63,667.8,1.53798753]
[1752098579900,3.36099617,668.62,667.81,1.53798753]
[1752098580099,3.36099617,668.62,667.82,1.53798753]
[1752098580304,3.36099617,668.62,667.83,1.53798753]
[1752098580500,3.36099617,668.62,667.84,1.53798753]
[1752098580799,3.36099617,668.62,667.85,1.53798753]
[1752098581003,3.36099617,668.62,667.86,1.53798753]
[1752098581201,3.36099617,668.62,667.87,1.53798753]
[1752098581401,3.36099617,668.51,667.88,1.53798753]
[1752098581603,3.36099617,668.65,667.89,1.53798753]
[1752098581806,3.36099617,668.65,667.9,1.53798753]
[1752098582106,3.36099617,668.65,667.91,1.53798753]
[1752098582307,3.36099617,668.65,667.92,1.53798753]
[1752098582506,3.36099617,668.73,667.93,1.53798753]
[1752098582708,3.36099617,668.73,667.94,1.53798753]
[1752098582904,3.36099617,668.7,667.95,1.53798753]
[1752098583108,3.36099617,668.7,667.96,1.53798753]
[1752098583407,3.36099617,668.7,667.97,1.53798753]
[1752098583609,3.36099617,668.71,667.98,1.53798753]
[1752098583809,3.36099617,668.71,667.99,1.53798753]
[1752098584009,3.36099617,668.71,668.0,1.53798753]
[1752098584210,3.36099617,668.71,667.79,2.328]
[1752098584408,3.36099617,668.71,667.8,1.53806106]
[1752098584709,3.36099617,668.71,667.81,1.53806106]
[1752098585009,3.36099617,668.71,667.82,1.53806106]
[1752098585305,3.36099617,668.71,667.83,1.53806106]
[1752098585511,3.36099617,668.71,667.84,1.53806106]
[1752098585806,3.36099617,668.71,667.85,1.53806106]
[1752098586007,3.36099617,668.66,667.86,1.53806106]
[1752098586212,3.36099617,668.66,667.87,1.53806106]
[1752098586508,3.36099617,668.59,667.88,1.53806106]
[1752098586712,3.36099617,668.67,667.89,1.53806106]
[1752098587007,3.36099617,668.68,667.9,1.53806106]
[1752098587207,3.36099617,668.68,667.91,1.53806106]
[1752098587410,3.36099617,668.68,667.92,1.53806106]
[1752098587709,3.36099617,668.66,667.93,1.53806106]
[1752098587907,3.36099617,668.66,667.94,1.53806106]
[1752098588111,3.36099617,668.66,667.95,1.53806106]
[1752098588412,3.36099617,668.61,667.96,1.53806106]
[1752098588612,3.36099617,668.61,667.97,1.53806106]
[1752098588809,3.36099617,668.61,667.98,1.53806106]
[1752098589013,3.36099617,668.63,667.99,1.53806106]
[1752098589213,3.36099617,668.63,668.0,1.53806106]
[1752098589409,3.36099617,668.63,668.01,1.53806106]
[1752098589613,3.36099617,668.63,668.02,1.53806106]
[1752098589910,3.36099617,668.63,668.03,1.53806106]
[1752098590114,3.36099617,668.59,667.79,3.99830374]
[1752098590312,3.36099617,668.59,667.8,1.53777218]
[1752098590612,3.36099617,668.59,667.81,1.53777218]
[1752098590816,3.36099617,668.59,667.82,1.53777218]
[1752098591013,3.36099617,668.59,667.83,1.53777218]
[1752098591210,3.36099617,668.59,667.84,1.53777218]
[1752098591414,3.36099617,668.59,667.85,1.53777218]
[1752098591614,3.36099617,668.59,667.86,1.53777218]
[1752098591815,3.36099617,668.59,667.87,1.53777218]
[1752098592110,3.36099617,668.59,667.88,1.53777218]
[1752098592315,3.36099617,668.59,667.89,1.53777218]
[1752098592515,3.36099617,668.57,667.9,1.53777218]
[1752098592712,3.36099617,668.57,667.91,1.53777218]
[1752098592917,3.36099617,668.57,667.92,1.53777218]
[1752098593118,3.36099617,668.57,667.93,1.53777218]
[1752098593314,3.36099617,668.57,667.94,1.53777218]
[1752098593513,3.36099617,668.57,667.95,1.53777218]
[1752098593717,3.36099617,668.51,667.79,2.328]
[1752098593915,3.36099617,668.51,667.8,1.53804747]
[1752098594114,3.36099617,668.53,667.81,1.53804747]
[1752098594320,3.36099617,668.53,667.82,1.53804747]
[1752098594514,3.36099617,668.53,667.83,1.53804747]
[1752098594815,3.36099617,668.51,667.84,1.53804747]
[1752098595015,3.36099617,668.51,667.85,1.53804747]
[1752098595213,3.36099617,668.51,667.86,1.53804747]
[1752098595518,3.36099617,668.51,667.87,1.53804747]
[1752098595718,3.36099617,668.51,667.88,1.53804747]
[1752098595914,3.36099617,668.51,667.89,1.53804747]
[1752098596114,3.36099617,668.51,667.9,1.53804747]
[1752098596317,3.36099617,668.52,667.91,1.53804747]
[1752098596517,3.36099617,668.52,667.92,1.53804747]
[1752098596717,3.36099617,668.5,667.69,1.67030374]
[1752098596918,3.36099617,668.5,667.7,1.53775572]
[1752098597115,3.36099617,668.5,667.71,1.53775572]
[1752098597316,3.36099617,668.5,667.72,1.53775572]
[1752098597513,3.36099617,668.49,667.73,1.53775572]
[1752098597718,3.36099617,668.49,667.74,1.53775572]
[1752098597920,3.36099617,668.49,667.75,1.53775572]
[1752098598215,3.36099617,668.49,667.76,1.53775572]
[1752098598418,3.36099617,668.49,667.69,1.67030374]
[1752098598419,3.36099617,668.49,667.77,1.53775572]
[1752098598616,3.36099617,668.48,667.78,1.53775572]
[1752098598815,3.36099617,668.45,667.79,1.53775572]
[1752098599019,3.36099617,668.45,667.8,1.53775572]
[1752098599221,3.36099617,668.45,667.81,1.53775572]
[1752098599518,3.36099617,668.45,667.82,1.53775572]
[1752098599719,3.36099617,668.46,667.83,1.53775572]
[1752098599917,3.36099617,668.46,667.84,1.53775572]
[1752098600118,3.36099617,668.46,667.85,1.53775572]
[1752098600319,3.36099617,668.47,667.86,1.53775572]
[1752098600515,3.36099617,668.46,667.87,1.53775572]
[1752098600720,3.36099617,668.46,667.88,1.53775572]
[1752098600920,3.36099617,668.46,667.89,1.53775572]
[1752098601121,3.36099617,668.46,667.9,1.53775572]
[1752098601323,3.36099617,668.46,667.81,1.718]
[1752098601523,3.36099617,668.48,667.82,1.53657317]
[1752098601822,3.36099617,668.48,667.83,1.53657317]
[1752098602023,3.36099617,668.49,667.84,1.53657317]
[1752098602223,3.36099617,668.5,667.85,1.53657317]
[1752098602424,3.36099617,668.5,667.86,1.53657317]
[1752098602723,3.36099617,668.5,667.87,1.53657317]